fUSD/lending_fUSD_20240803
["ID","MTS","AMOUNT","RATE_DAILY","PERIOD"]
[334049251,1722708632022,-104.16729165,9.892e-05,2]
[334049252,1722708632031,-402.3,9.893e-05,2]
[334049253,1722708632041,-299.99,9.893e-05,2]
[334049254,1722708632050,-5259.60270835,9.893e-05,2]
[334049255,1722708632062,-1311.51729165,9.893e-05,2]
[334049256,1722708632071,-402.3,9.896e-05,2]
[334049257,1722708632080,-402.3,9.899e-05,2]
[334049258,1722708632092,-402.3,9.901e-05,2]
[334049259,1722708632101,-402.3,9.904e-05,2]
[334049260,1722708632111,-402.3,9.906e-05,2]
[334049261,1722708632119,-402.3,9.909e-05,2]
[334049262,1722708632129,-402.3,9.912e-05,2]
[334049263,1722708632139,-402.3,9.914e-05,2]
[334049264,1722708632148,-402.3,9.917e-05,2]
[334049266,1722708632157,-402.3,9.919e-05,2]
[334049268,1722708632168,-402.3,9.922e-05,2]
[334049270,1722708632177,-402.3,9.925e-05,2]
[334049271,1722708632186,-402.3,9.927e-05,2]
[334049273,1722708632195,-962.63902652,9.962e-05,2]
[334049274,1722708632205,-1256.4439005,9.962e-05,2]
[334049275,1722708632214,-155.0,0.0001,2]
[334049276,1722708632227,-165.34169392,0.0001,2]
[334049277,1722708632236,-226.87743079,0.0001,2]
[334049278,1722708632245,-188.60979296,0.0001,2]
[334049279,1722708632256,-150.0,0.00010254,2]
[334049280,1722708632265,-766.92,0.00010438,2]
[334049281,1722708632275,-354.28,0.00010486,2]
[334049282,1722708632284,-716.57,0.00010499,2]
[334049283,1722708632293,-176.23,0.00010575,2]
[334049284,1722708632303,-176.23,0.00010575,2]
[334049285,1722708632312,-176.23,0.00010575,2]
[334049286,1722708632321,-176.23,0.00010575,2]
[334049287,1722708632333,-176.23,0.00010575,2]
[334049288,1722708632342,-176.23,0.00010575,2]
[334049289,1722708632351,-48328.52086366,0.00010585,2]
[334049290,1722708632406,-451.92492773,0.00010585,2]
[334049305,1722708637899,-314.025,0.00010585,2]
[334049311,1722708639128,-132.52920861,0.00010585,2]
[334049313,1722708639139,-199.19,0.00010615,2]
[334049315,1722708639148,-150.0,0.0001062,2]
[334049317,1722708639159,-156.52927692,0.0001067,2]
[334049320,1722708639171,-1322.823432,0.0001067,2]
[334049321,1722708639181,-1479.35270892,0.0001067,2]
[334049322,1722708639191,-176.23,0.0001069,2]
[334049323,1722708639201,-1289.3058,0.000107,2]
[334049324,1722708639211,-176.23,0.0001077,2]
[334049325,1722708639220,-176.23,0.0001077,2]
[334049326,1722708639229,-13729.90765704,0.0001078,2]
[334049327,1722708639239,-176.23,0.0001078,2]
[334049328,1722708639250,-176.23,0.0001078,2]
[334049329,1722708639259,-176.23,0.0001078,2]
[334049330,1722708639269,-176.23,0.0001078,2]
[334049331,1722708639279,-213.0871,0.0001078,2]
[334049332,1722708639288,-176.23,0.0001079,2]
[334049333,1722708639297,-176.23,0.0001079,2]
[334049334,1722708639306,-176.23,0.0001079,2]
[334049335,1722708639316,-176.23,0.0001079,2]
[334049336,1722708639325,-21553.939,0.0001079,2]
[334049337,1722708639334,-3317.5461,0.000108,2]
[334049338,1722708639343,-14134.7269,0.000108,2]
[334049339,1722708639352,-176.23,0.0001087,2]
[334049340,1722708639362,-176.23,0.0001087,2]
[334049341,1722708639372,-176.23,0.0001087,2]
[334049342,1722708639381,-176.23,0.0001087,2]
[334049343,1722708639390,-176.23,0.0001087,2]
[334049344,1722708639399,-176.23,0.0001087,2]
[334049345,1722708639409,-176.23,0.0001087,2]
[334049346,1722708639418,-176.23,0.0001087,2]
[334049347,1722708639428,-176.23,0.0001087,2]
[334049348,1722708639438,-176.23,0.0001087,2]
[334049349,1722708639447,-176.23,0.0001087,2]
[334049350,1722708639457,-176.23,0.0001087,2]
[334049351,1722708639467,-176.23,0.0001087,2]
[334049352,1722708639476,-24791.41355338,0.0001088,2]
[334049353,1722708639488,-3936.04611518,0.0001088,2]
[334049354,1722708639499,-59084.54033144,0.0001088,2]
[334049356,1722708639510,-164.68926633,0.0001088,2]
[334049357,1722708639519,-255.0,0.00010882,2]
[334049358,1722708639530,-886.35741049,0.00010886,2]
[334049359,1722708639540,-362.67177732,0.00010886,2]
[334049360,1722708639554,-886.35741047,0.0001089,2]
[334049361,1722708639564,-456.94344,0.0001089,2]
[334049362,1722708639573,-250.71999575,0.0001089,2]
[334049363,1722708639583,-886.35741047,0.00010893,2]
[334049364,1722708639593,-250.71999573,0.00010895,2]
[334049365,1722708639603,-886.35741047,0.00010897,2]
[334049366,1722708639613,-171.85912976,0.00010897,2]
[334049368,1722708639623,-4705.7756,0.00010899,2]
[334049370,1722708639635,-60011.275,0.00010899,2]
[334049372,1722708639645,-15820.93087132,0.00010899,2]
[334049374,1722708639655,-70804.6888,0.000109,2]
[334049377,1722708639665,-2324.21109593,0.000109,2]
[334049379,1722708639675,-3520.9278,0.000109,2]
[334049381,1722708639684,-1772.4321,0.000109,2]
[334049383,1722708639694,-475.1075,0.000109,2]
[334049385,1722708639704,-6554.435778,0.000109,2]
[334049387,1722708639716,-3028.0524,0.000109,2]
[334049389,1722708639726,-405.81543398,0.000109,2]
[334049391,1722708639736,-886.35741047,0.000109,2]
[334049393,1722708639746,-250.71999573,0.000109,2]
[334049395,1722708639755,-167.16366305,0.000109,2]
[334049397,1722708639766,-167.16366303,0.000109,2]
[334049399,1722708639775,-167.16366303,0.000109,2]
[334049401,1722708639786,-167.16366303,0.000109,2]
[334049403,1722708639795,-158.96084289,0.000109,2]
[334049404,1722708639804,-607.80962172,0.000109,2]
[334049406,1722708639814,-10633.9594362,0.000109,2]
[334049408,1722708639823,-176.76776976,0.000109,2]
[334049410,1722708639833,-500.0,0.00010912,2]
[334049412,1722708639842,-250.0,0.00010959,2]
[334049414,1722708639852,-7014.23,0.00010959,2]
[334049416,1722708639861,-150.0,0.00010959,2]
[334049418,1722708639871,-464.72,0.00010959,2]
[334049420,1722708639880,-387.26,0.00010959,2]
[334049421,1722708639890,-322.72,0.00010959,2]
[334049423,1722708639899,-5803.54,0.00010959,2]
[334049425,1722708639909,-268.93,0.00010959,2]
[334049427,1722708639919,-224.11,0.00010959,2]
[334049430,1722708639928,-186.76,0.00010959,2]
[334049432,1722708639938,-1119.37,0.00010959,2]
[334049434,1722708639947,-155.63,0.00010959,2]
[334049436,1722708639956,-150.93,0.00010976,2]
[334049438,1722708639966,-150.93,0.00010979,2]
[334049440,1722708639975,-150.93,0.0001098,2]
[334049441,1722708639985,-150.93,0.0001098,2]
[334049443,1722708639995,-150.93,0.0001098,2]
[334049446,1722708640004,-150.93,0.0001098,2]
[334049447,1722708640014,-150.93,0.0001098,2]
[334049450,1722708640023,-150.93,0.0001098,2]
[334049452,1722708640032,-150.93,0.0001098,2]
[334049454,1722708640042,-150.71639531,0.00010986,2]
[334049456,1722708640051,-153191.0,0.00010986,2]
[334049458,1722708640061,-20340.0,0.00010986,2]
[334049460,1722708640071,-169.70524549,0.00010986,2]
[334049462,1722708640080,-519.40523966,0.00010989,2]
[334049463,1722708640089,-389.50419194,0.00010989,2]
[334049465,1722708640099,-500.0,0.00010989,2]
[334049467,1722708640108,-500.0,0.00010989,2]
[334049469,1722708640117,-892.59289748,0.00010989,2]
[334049471,1722708640126,-500.0,0.00010989,2]
[334049473,1722708640136,-892.59289748,0.00010989,2]
[334049475,1722708640145,-892.59289748,0.00010989,2]
[334049477,1722708640154,-500.0,0.00010989,2]
[334049478,1722708640163,-500.0,0.00010989,2]
[334049479,1722708640173,-500.0,0.00010989,2]
[334049480,1722708640183,-892.59289748,0.00010989,2]
[334049481,1722708640192,-183.23314245,0.00010989,2]
[334049482,1722708640201,-500.0,0.00010989,2]
[334049483,1722708640211,-892.59289748,0.00010989,2]
[334049484,1722708640220,-892.59289748,0.00010989,2]
[334049485,1722708640230,-500.0,0.00010989,2]
[334049486,1722708640240,-500.0,0.00010989,2]
[334049487,1722708640250,-892.59289748,0.00010989,2]
[334049488,1722708640259,-892.59289748,0.00010989,2]
[334049489,1722708640269,-500.0,0.00010989,2]
[334049490,1722708640279,-892.59289748,0.00010989,2]
[334049491,1722708640288,-500.0,0.00010989,2]
[334049492,1722708640298,-500.0,0.00010989,2]
[334049493,1722708640307,-892.59289748,0.00010989,2]
[334049494,1722708640316,-892.59289748,0.00010989,2]
[334049495,1722708640326,-500.0,0.00010989,2]
[334049496,1722708640336,-892.59289748,0.00010989,2]
[334049497,1722708640346,-500.0,0.00010989,2]
[334049498,1722708640355,-500.0,0.00010989,2]
[334049499,1722708640364,-892.59289748,0.00010989,2]
[334049500,1722708640373,-892.59289748,0.00010989,2]
[334049501,1722708640383,-500.0,0.00010989,2]
[334049502,1722708640393,-892.59289748,0.00010989,2]
[334049503,1722708640402,-511.35482282,0.00010989,2]
[334049504,1722708640412,-892.59289748,0.00010989,2]
[334049505,1722708640421,-500.0,0.00010989,2]
[334049506,1722708640431,-892.59289748,0.00010989,2]
[334049507,1722708640440,-500.0,0.00010989,2]
[334049508,1722708640450,-892.59289748,0.00010989,2]
[334049509,1722708640460,-500.0,0.00010989,2]
[334049510,1722708640470,-892.59289748,0.00010989,2]
[334049511,1722708640480,-500.0,0.00010989,2]
[334049512,1722708640490,-892.59289748,0.00010989,2]
[334049513,1722708640500,-500.0,0.00010989,2]
[334049514,1722708640510,-892.59289748,0.00010989,2]
[334049515,1722708640521,-500.0,0.00010989,2]
[334049516,1722708640531,-892.59289748,0.00010989,2]
[334049517,1722708640541,-500.0,0.00010989,2]
[334049518,1722708640552,-892.59289748,0.00010989,2]
[334049538,1722708640907,-892.59289748,0.00010989,2]
[334049540,1722708640917,-892.59289748,0.00010989,2]
[334049542,1722708640926,-500.0,0.00010989,2]
[334049544,1722708640936,-892.59289748,0.00010989,2]
[334049546,1722708640945,-500.0,0.00010989,2]
[334049548,1722708640955,-892.59289748,0.00010989,2]
[334049550,1722708640964,-500.0,0.00010989,2]
[334049552,1722708640974,-500.0,0.00010989,2]
[334049554,1722708640983,-892.59289748,0.00010989,2]
[334049556,1722708640993,-500.0,0.00010989,2]
[334049558,1722708641003,-892.59289748,0.00010989,2]
[334049560,1722708641013,-500.0,0.00010989,2]
[334049562,1722708641023,-892.59289748,0.00010989,2]
[334049564,1722708641033,-500.0,0.00010989,2]
[334049566,1722708641043,-500.0,0.00010989,2]
[334049569,1722708641054,-892.59289748,0.00010989,2]
[334049571,1722708641064,-500.0,0.00010989,2]
[334049573,1722708641074,-892.59289748,0.00010989,2]
[334049575,1722708641084,-500.0,0.00010989,2]
[334049577,1722708641095,-892.59289748,0.00010989,2]
[334049579,1722708641106,-892.59289748,0.00010989,2]
[334049581,1722708641116,-500.0,0.00010989,2]
[334049583,1722708641126,-892.59289748,0.00010989,2]
[334049585,1722708641136,-500.0,0.00010989,2]
[334049587,1722708641147,-892.59289748,0.00010989,2]
[334049589,1722708641156,-500.0,0.00010989,2]
[334049591,1722708641166,-892.59289748,0.00010989,2]
[334049593,1722708641177,-500.0,0.00010989,2]
[334049595,1722708641187,-892.59289748,0.00010989,2]
[334049597,1722708641197,-500.0,0.00010989,2]
[334049599,1722708641208,-892.59289748,0.00010989,2]
[334049601,1722708641218,-500.0,0.00010989,2]
[334049603,1722708641228,-892.59289748,0.00010989,2]
[334049605,1722708641238,-500.0,0.00010989,2]
[334049607,1722708641248,-892.59289748,0.00010989,2]
[334049609,1722708641258,-500.0,0.00010989,2]
[334049611,1722708641268,-892.59289748,0.00010989,2]
[334049613,1722708641278,-500.0,0.00010989,2]
[334049616,1722708641288,-892.59289748,0.00010989,2]
[334049618,1722708641298,-892.59289748,0.00010989,2]
[334049620,1722708641309,-892.59289748,0.00010989,2]
[334049622,1722708641319,-500.0,0.00010989,2]
[334049624,1722708641329,-892.59289748,0.00010989,2]
[334049626,1722708641339,-500.0,0.00010989,2]
[334049628,1722708641350,-892.59289748,0.00010989,2]
[334049630,1722708641360,-500.0,0.00010989,2]
[334049632,1722708641370,-892.59289748,0.00010989,2]
[334049634,1722708641380,-892.59289748,0.00010989,2]
[334049636,1722708641390,-892.59289748,0.00010989,2]
[334049638,1722708641400,-500.0,0.00010989,2]
[334049640,1722708641411,-892.59289748,0.00010989,2]
[334049642,1722708641421,-500.0,0.00010989,2]
[334049644,1722708641431,-500.0,0.00010989,2]
[334049646,1722708641441,-892.59289748,0.00010989,2]
[334049648,1722708641451,-500.0,0.00010989,2]
[334049650,1722708641461,-892.59289748,0.00010989,2]
[334049652,1722708641471,-500.0,0.00010989,2]
[334049654,1722708641482,-892.59289748,0.00010989,2]
[334049656,1722708641492,-500.0,0.00010989,2]
[334049658,1722708641503,-892.59289748,0.00010989,2]
[334049660,1722708641515,-500.0,0.00010989,2]
[334049662,1722708641524,-500.0,0.00010989,2]
[334049664,1722708641534,-500.0,0.00010989,2]
[334049666,1722708641544,-500.0,0.00010989,2]
[334049668,1722708641556,-500.0,0.00010989,2]
[334049670,1722708641567,-500.0,0.00010989,2]
[334049672,1722708641577,-500.0,0.00010989,2]
[334049674,1722708641586,-500.0,0.00010989,2]
[334049676,1722708641598,-500.0,0.00010989,2]
[334049678,1722708641607,-500.0,0.00010989,2]
[334049680,1722708641618,-500.0,0.00010989,2]
[334049682,1722708641630,-500.0,0.00010989,2]
[334049684,1722708641641,-500.0,0.00010989,2]
[334049686,1722708641651,-500.0,0.00010989,2]
[334049688,1722708641660,-500.0,0.00010989,2]
[334049690,1722708641670,-872.19077411,0.00010989,2]
[334049692,1722708641680,-500.0,0.00010989,2]
[334049694,1722708641690,-872.19077411,0.00010989,2]
[334049696,1722708641700,-500.0,0.00010989,2]
[334049698,1722708641710,-872.19077411,0.00010989,2]
[334049700,1722708641720,-872.19077411,0.00010989,2]
[334049702,1722708641730,-500.0,0.00010989,2]
[334049704,1722708641740,-872.19077411,0.00010989,2]
[334049706,1722708641750,-500.0,0.00010989,2]
[334049708,1722708641759,-872.19077411,0.00010989,2]
[334049710,1722708641771,-500.0,0.00010989,2]
[334049712,1722708641782,-872.19077411,0.00010989,2]
[334049714,1722708641792,-500.0,0.00010989,2]
[334049716,1722708641802,-872.19077411,0.00010989,2]
[334049718,1722708641813,-872.19077411,0.00010989,2]
[334049720,1722708641822,-500.0,0.00010989,2]
[334049722,1722708641832,-872.19077411,0.00010989,2]
[334049724,1722708641842,-500.0,0.00010989,2]
[334049726,1722708641852,-872.19077411,0.00010989,2]
[334049728,1722708641861,-500.0,0.00010989,2]
[334049730,1722708641871,-872.19077411,0.00010989,2]
[334049732,1722708641881,-500.0,0.00010989,2]
[334049734,1722708641891,-872.19077411,0.00010989,2]
[334049736,1722708641901,-500.0,0.00010989,2]
[334049738,1722708641910,-872.19077411,0.00010989,2]
[334049740,1722708641920,-872.19077411,0.00010989,2]
[334049742,1722708641929,-500.0,0.00010989,2]
[334049744,1722708641939,-872.19077411,0.00010989,2]
[334049746,1722708641949,-872.19077411,0.00010989,2]
[334049748,1722708641958,-500.0,0.00010989,2]
[334049749,1722708641968,-872.19077411,0.00010989,2]
[334049751,1722708641978,-872.19077411,0.00010989,2]
[334049753,1722708641989,-872.19077411,0.00010989,2]
[334049755,1722708641999,-872.19077411,0.00010989,2]
[334049757,1722708642010,-872.19077411,0.00010989,2]
[334049760,1722708642020,-872.19077411,0.00010989,2]
[334049762,1722708642030,-872.19077411,0.00010989,2]
[334049764,1722708642040,-872.19077411,0.00010989,2]
[334049766,1722708642050,-872.19077411,0.00010989,2]
[334049768,1722708642059,-872.19077411,0.00010989,2]
[334049770,1722708642070,-872.19077411,0.00010989,2]
[334049772,1722708642080,-872.19077411,0.00010989,2]
[334049774,1722708642089,-872.19077411,0.00010989,2]
[334049776,1722708642099,-872.19077411,0.00010989,2]
[334049778,1722708642109,-872.19077411,0.00010989,2]
[334049780,1722708642120,-872.19077411,0.00010989,2]
[334049782,1722708642129,-872.19077414,0.00010989,2]
[334049784,1722708642139,-872.19077414,0.00010989,2]
[334049786,1722708642149,-866.0,0.0001099,2]
[334049788,1722708642158,-150.0,0.0001099,2]
[334049790,1722708642168,-867949.64656499,0.0001099,2]
[334049792,1722708642178,-150.93,0.0001099,2]
[334049794,1722708642188,-150.93,0.0001099,2]
[334049796,1722708642198,-150.93,0.0001099,2]
[334049798,1722708642207,-150.93,0.0001099,2]
[334049800,1722708642217,-150.93,0.0001099,2]
[334049802,1722708642226,-150.93,0.0001099,2]
[334049804,1722708642236,-150.93,0.0001099,2]
[334049806,1722708642246,-150.93,0.0001099,2]
[334049808,1722708642255,-150.93,0.0001099,2]
[334049810,1722708642265,-150.93,0.0001099,2]
[334049812,1722708642275,-150.93,0.0001099,2]
[334049814,1722708642284,-150.93,0.0001099,2]
[334049816,1722708642294,-150.93,0.0001099,2]
[334049818,1722708642303,-150.93,0.0001099,2]
[334049820,1722708642312,-150.93,0.0001099,2]
[334049822,1722708642323,-150.93,0.0001099,2]
[334049824,1722708642332,-150.93,0.0001099,2]
[334049826,1722708642342,-150.93,0.0001099,2]
[334049828,1722708642351,-150.93,0.0001099,2]
[334049830,1722708642361,-150.93,0.0001099,2]
[334049832,1722708642371,-150.93,0.0001099,2]
[334049834,1722708642381,-150.93,0.0001099,2]
[334049836,1722708642390,-150.93,0.0001099,2]
[334049838,1722708642400,-150.93,0.0001099,2]
[334049840,1722708642410,-150.93,0.0001099,2]
[334049842,1722708642420,-150.93,0.0001099,2]
[334049844,1722708642429,-150.93,0.0001099,2]
[334049846,1722708642439,-150.93,0.0001099,2]
[334049848,1722708642449,-150.93,0.0001099,2]
[334049850,1722708642458,-150.93,0.0001099,2]
[334049852,1722708642468,-150.93,0.0001099,2]
[334049854,1722708642479,-150.93,0.0001099,2]
[334049856,1722708642489,-150.93,0.0001099,2]
[334049858,1722708642498,-150.93,0.0001099,2]
[334049860,1722708642508,-150.93,0.0001099,2]
[334049861,1722708642518,-150.93,0.0001099,2]
[334049863,1722708642528,-150.93,0.0001099,2]
[334049864,1722708642538,-150.93,0.0001099,2]
[334049865,1722708642548,-150.93,0.0001099,2]
[334049866,1722708642560,-150.93,0.0001099,2]
[334049867,1722708642571,-150.93,0.0001099,2]
[334049868,1722708642581,-150.93,0.0001099,2]
[334049869,1722708642592,-150.93,0.0001099,2]
[334049871,1722708642601,-150.93,0.0001099,2]
[334049874,1722708642611,-150.93,0.0001099,2]
[334049876,1722708642620,-150.93,0.0001099,2]
[334049878,1722708642631,-150.93,0.0001099,2]
[334049880,1722708642642,-150.93,0.0001099,2]
[334049882,1722708642652,-150.93,0.0001099,2]
[334049884,1722708642662,-150.93,0.0001099,2]
[334049886,1722708642671,-150.93,0.0001099,2]
[334049888,1722708642682,-848.52622745,0.00010997,2]
[334049890,1722708642691,-2424.54979713,0.00010999,2]
[334049892,1722708642700,-1629.06500109,0.00010999,3]
[334049894,1722708642710,-500.0,0.00010999,2]
[334049897,1722708642719,-500.0,0.00010999,2]
[334049899,1722708642730,-500.0,0.00010999,2]
[334049901,1722708642740,-500.0,0.00010999,2]
[334049903,1722708642750,-500.0,0.00010999,2]
[334049905,1722708642760,-400.80416195,0.00010999,2]
[334049907,1722708642769,-1604711.70735304,0.00011,2]
[334049909,1722708642785,-366936.59996874,0.00011,2]
[334049914,1722708642817,-180.01780744,0.00011,2]
[334049916,1722708642828,-360.18505011,0.00011,2]
[334049918,1722708642839,-570.40716447,0.00011,2]
[334049920,1722708642851,-851.01354152,0.00011,2]
[334049923,1722708642862,-313.147835,0.00011,2]
[334049925,1722708642874,-3695.45516317,0.00011,2]
[334049954,1722708643139,-948.10442297,0.00011,2]
[334049956,1722708643151,-12921.63839813,0.00011,2]
[334049958,1722708643162,-4605.59589095,0.00011,2]
[334049960,1722708643174,-866.06916017,0.00011,2]
[334049962,1722708643185,-1224.96970469,0.00011,2]
[334049965,1722708643201,-892.40355142,0.00011,2]
[334049967,1722708643213,-760.32601188,0.00011,2]
[334049969,1722708643224,-132133.21504609,0.00011,2]
[334049971,1722708643236,-3375.53455105,0.00011,2]
[334049974,1722708643247,-644.99746388,0.00011,2]
[334049976,1722708643258,-2852.2,0.00011,2]
[334049978,1722708643270,-1058.9027694,0.00011,2]
[334049980,1722708643282,-348.7775,0.00011,2]
[334049983,1722708643297,-1423.3,0.00011,2]
[334049985,1722708643308,-406.892,0.00011,2]
[334049987,1722708643319,-96984.12912391,0.00011,2]
[334049989,1722708643331,-372.50946649,0.00011,2]
[334049992,1722708643345,-473441.71617927,0.00011,2]
[334049994,1722708643356,-4534.98122466,0.00011,2]
[334050029,1722708643714,-831.872596,0.00011,2]
[334050032,1722708643726,-296.95776435,0.00011,2]
[334050034,1722708643736,-566.62860673,0.00011,2]
[334050085,1722708644748,-6004.27155349,0.00011,2]
[334050086,1722708644759,-6645.17838912,0.00011,2]
[334050087,1722708644770,-317.58278286,0.00011,2]
[334050088,1722708644782,-10853.00757091,0.00011,2]
[334050089,1722708644793,-110872.91724177,0.00011,2]
[334050090,1722708644809,-1250.32,0.00011,2]
[334050091,1722708644821,-1772.64518951,0.00011,2]
[334050092,1722708644841,-31260.49999999,0.00011,2]
[334050093,1722708644854,-457.46955249,0.00011,2]
[334050094,1722708644866,-1777.28742832,0.00011,2]
[334050095,1722708644877,-6950.22205377,0.00011,2]
[334050096,1722708644889,-16402.26069,0.00011,2]
[334050097,1722708644902,-15096.944225,0.00011,2]
[334050106,1722708645994,-496.82696565,0.00011,2]
[334050107,1722708646007,-339.53860701,0.00011,2]
[334050108,1722708646020,-436.81,0.00011,2]
[334050109,1722708646033,-782.5125,0.00011,2]
[334050110,1722708646063,-7024.07444932,0.00011,2]
[334050111,1722708646138,-2693.82653913,0.00011,2]
[334050112,1722708646287,-376.87925389,0.00011,2]
[334050113,1722708646301,-1560.95,0.00011,2]
[334050114,1722708646339,-13561.3457961,0.00011,2]
[334050115,1722708646351,-134130.97023448,0.00011,2]
[334050116,1722708646363,-1567.47282223,0.00011,2]
[334050117,1722708646376,-572.04447067,0.00011,2]
[334050118,1722708646389,-273.47633085,0.00011,2]
[334050332,1722708689546,227.60153513,9.279e-05,2]
[334050334,1722708771077,155.0,9.279e-05,2]
[334050335,1722708778495,6134.58159675,9.279e-05,2]
[334050336,1722708798687,500.0,0.00025792,120]
[334050337,1722708806701,200.0,0.00026,120]
[334050338,1722708875693,-7178.34654466,0.0002,30]
[334050339,1722708875723,-131273.44333677,0.0002,30]
[334050340,1722708875748,-250.0,0.0002,30]
[334050341,1722708875778,-250.0,0.00021,30]
[334050342,1722708875806,-221.55742435,0.00022,30]
[334050343,1722708875834,-1073.16209137,0.00023288,30]
[334050344,1722708875858,-1073.16209137,0.00023397,30]
[334050345,1722708875883,-1073.16209137,0.00023479,30]
[334050346,1722708875909,-1073.16209137,0.00023589,30]
[334050347,1722708875935,-1073.16209137,0.00023671,30]
[334050348,1722708875961,-1073.16209137,0.00023781,30]
[334050349,1722708875986,-1073.16209137,0.0002389,30]
[334050350,1722708876011,-1073.16209137,0.00023973,30]
[334050351,1722708876036,-3000.0,0.00024,30]
[334050352,1722708876062,-1073.16209137,0.00024082,30]
[334050353,1722708876087,-1073.16209137,0.00024164,30]
[334050354,1722708876113,-1073.16209137,0.00024274,30]
[334050355,1722708876138,-1073.16209137,0.00024356,30]
[334050356,1722708876162,-1073.16209137,0.00024466,30]
[334050357,1722708876187,-1073.16209137,0.00024575,30]
[334050358,1722708876458,-1073.16209137,0.00024658,30]
[334050359,1722708876491,-250.0,0.00025,30]
[334050360,1722708876515,-250.0,0.00025,30]
[334050361,1722708876544,-665.05861731,0.00026901,30]
[334050362,1722708876569,-3100.0,0.00027,60]
[334050363,1722708876596,-150.0,0.00027079,120]
[334050364,1722708876621,-150.0,0.00027292,120]
[334050365,1722708876648,-150.0,0.00027328,120]
[334050366,1722708876673,-233.1704317,0.0002736,120]
[334050367,1722708876696,-490.59156722,0.0002738,120]
[334050368,1722708876722,-2000.0,0.00027397,30]
[334050369,1722708876746,-2000.0,0.00027397,30]
[334050370,1722708876770,-2000.0,0.00027397,30]
[334050371,1722708876793,-2000.0,0.00027397,30]
[334050372,1722708876817,-2000.0,0.00027397,30]
[334050373,1722708876842,-2000.0,0.00027397,30]
[334050374,1722708876865,-2000.0,0.00027397,30]
[334050375,1722708876889,-2000.0,0.00027397,30]
[334050376,1722708876913,-2000.0,0.00027397,30]
[334050377,1722708876937,-2000.0,0.00027397,30]
[334050378,1722708876961,-2000.0,0.00027397,30]
[334050379,1722708876985,-2000.0,0.00027397,30]
[334050380,1722708877008,-2000.0,0.00027397,30]
[334050381,1722708877031,-2000.0,0.00027397,30]
[334050382,1722708877055,-2000.0,0.00027397,30]
[334050383,1722708877078,-2000.0,0.00027397,30]
[334050384,1722708877103,-2000.0,0.00027397,30]
[334050385,1722708877127,-2000.0,0.00027397,30]
[334050386,1722708877151,-2000.0,0.00027397,30]
[334050387,1722708877174,-936.86918087,0.00027397,30]
[334050388,1722708877199,-200.0,0.00027397,60]
[334050389,1722708877229,-150.0,0.00027487,120]
[334050390,1722708877254,-150.0,0.00027809,120]
[334050391,1722708877280,-150.0,0.00027914,120]
[334050392,1722708877305,-260.37934381,0.00028,30]
[334050393,1722708877328,-185.82149911,0.00028,120]
[334050394,1722708877395,-150.0,0.00028447,120]
[334050395,1722708877419,-167.06142317,0.000285,120]
[334050396,1722708877446,-150.0,0.00028908,120]
[334050397,1722708877471,-200.0,0.00029,120]
[334050398,1722708877496,-1800.0,0.00029,30]
[334050399,1722708877520,-388.0,0.00029836,120]
[334050400,1722708877545,-150.0,0.00029865,120]
[334050401,1722708877573,-150.0,0.00029919,120]
[334050402,1722708877597,-150.0,0.00029976,120]
[334050403,1722708877626,-50000.0,0.0003,30]
[334050404,1722708877651,-383.44496281,0.0003,30]
[334050405,1722708877678,-185.1,0.0003,120]
[334050406,1722708877703,-151.0,0.0003,120]